fUST/lending_fUST_20240214
["ID","MTS","AMOUNT","RATE_DAILY","PERIOD"]
[313962154,1707864638556,-155.69913895,0.00037908,4]
[313962156,1707864638566,-315.46541719,0.00037908,7]
[313962158,1707864638575,-298.05091611,0.00037908,7]
[313962160,1707864638585,-379.85759581,0.00037908,7]
[313962162,1707864638594,-357.85741364,0.00037908,10]
[313962164,1707864638603,-387.16670854,0.00037909,4]
[313962166,1707864638613,-154.82968734,0.00037909,4]
[313962168,1707864638622,-500.0,0.00037909,14]
[313962170,1707864638632,-500.0,0.00037909,14]
[313962172,1707864638641,-500.0,0.00037909,7]
[313962174,1707864638650,-352.09089738,0.00037917,10]
[313962176,1707864638659,-1717.3410849,0.00037917,2]
[313962177,1707864638668,-155.07729107,0.00037917,4]
[313962180,1707864638678,-3166.28435254,0.00037917,4]
[313962188,1707864638825,-11701.8679605,0.00037917,4]
[313962189,1707864638838,-1759.82826705,0.00037917,4]
[313962190,1707864638852,-5096.68926821,0.00037917,4]
[313962197,1707864641180,-200.0,0.00028822,15]
[313962198,1707864641190,-280.0,0.00031704,15]
[313962199,1707864641200,-204.0,0.00034875,15]
[313962200,1707864641210,-7494.2397297,0.00037917,4]
[313962201,1707864641222,-7869.31812086,0.00037917,4]
[313962202,1707864641232,-535.79408158,0.00037917,4]
[313962203,1707864641241,-179.31837611,0.00037917,4]
[313962204,1707864641251,-155.05737123,0.00037917,4]
[313962205,1707864641261,-500.0,0.00037917,14]
[313962206,1707864641270,-500.0,0.00037917,14]
[313962207,1707864641280,-500.0,0.00037917,14]
[313962208,1707864641289,-500.0,0.00037917,2]
[313962209,1707864641298,-500.0,0.00037917,14]
[313962210,1707864641307,-500.0,0.00037917,14]
[313962211,1707864641316,-516.79,0.00037917,14]
[313962212,1707864641325,-500.0,0.00037917,14]
[313962213,1707864641334,-500.0,0.00037917,14]
[313962214,1707864641344,-500.0,0.00037917,14]
[313962215,1707864641354,-290.17876149,0.00037917,14]
[313962216,1707864641364,-500.0,0.00037917,14]
[313962217,1707864641374,-500.0,0.00037917,14]
[313962218,1707864641383,-327.64198413,0.00037917,14]
[313962219,1707864641392,-500.0,0.00037917,14]
[313962220,1707864641401,-245.55365273,0.00037917,14]
[313962221,1707864641410,-500.0,0.00037917,14]
[313962222,1707864641419,-500.0,0.00037917,2]
[313962223,1707864641428,-500.0,0.00037917,14]
[313962224,1707864641438,-500.0,0.00037917,14]
[313962225,1707864641446,-500.0,0.00037917,14]
[313962226,1707864641455,-500.0,0.00037917,14]
[313962227,1707864641464,-500.0,0.00037917,14]
[313962228,1707864641474,-500.0,0.00037917,14]
[313962229,1707864641483,-500.0,0.00037917,14]
[313962230,1707864641492,-500.0,0.00037917,14]
[313962231,1707864641502,-500.0,0.00037917,14]
[313962232,1707864641511,-500.0,0.00037917,14]
[313962233,1707864641520,-500.0,0.00037917,14]
[313962234,1707864641529,-500.0,0.00037917,14]
[313962235,1707864641538,-500.0,0.00037917,14]
[313962236,1707864641547,-500.0,0.00037917,14]
[313962237,1707864641556,-500.0,0.00037917,14]
[313962238,1707864641565,-500.0,0.00037917,14]
[313962239,1707864641575,-500.0,0.00037917,14]
[313962240,1707864641584,-500.0,0.00037917,14]
[313962241,1707864641593,-500.0,0.00037917,14]
[313962242,1707864641602,-500.0,0.00037917,14]
[313962243,1707864641611,-500.0,0.00037917,14]
[313962244,1707864641621,-500.0,0.00037917,14]
[313962245,1707864641629,-500.0,0.00037917,14]
[313962246,1707864641638,-500.0,0.00037917,14]
[313962247,1707864641647,-500.0,0.00037917,14]
[313962248,1707864641656,-500.0,0.00037917,14]
[313962249,1707864641665,-500.0,0.00037917,14]
[313962250,1707864641674,-500.0,0.00037917,14]
[313962251,1707864641684,-266.26632654,0.00037917,14]
[313962252,1707864641696,-233.73367346,0.00037917,14]
[313962253,1707864641706,-500.0,0.00037917,14]
[313962254,1707864641715,-500.0,0.00037917,14]
[313962255,1707864641724,-500.0,0.00037917,14]
[313962256,1707864641733,-500.0,0.00037917,14]
[313962257,1707864641743,-500.0,0.00037917,14]
[313962258,1707864641752,-500.0,0.00037917,14]
[313962259,1707864641761,-500.0,0.00037917,14]
[313962260,1707864641770,-616.13,0.00037917,14]
[313962261,1707864641780,-599.49,0.00037917,14]
[313962262,1707864641789,-2.22643844,0.00037917,14]
[313962263,1707864641802,-497.77356156,0.00037917,14]
[313962264,1707864641812,-500.0,0.00037917,14]
[313962265,1707864641824,-500.0,0.00037917,14]
[313962266,1707864641834,-500.0,0.00037917,14]
[313962267,1707864641842,-500.0,0.00037917,14]
[313962268,1707864641852,-500.0,0.00037917,14]
[313962269,1707864641861,-500.0,0.00037917,14]
[313962270,1707864641870,-500.0,0.00037917,14]
[313962271,1707864641880,-500.0,0.00037917,14]
[313962272,1707864641890,-500.0,0.00037917,14]
[313962273,1707864641900,-151.39975595,0.00037917,14]
[313962311,1707864645958,-348.60024405,0.00037917,14]
[313962312,1707864645968,-500.0,0.00037917,14]
[313962313,1707864645978,-500.0,0.00037917,14]
[313962314,1707864645987,-256.05,0.00037917,14]
[313962316,1707864645998,-221.45173241,0.00037917,14]
[313962317,1707864646013,-278.54826759,0.00037917,14]
[313962318,1707864646022,-500.0,0.00037917,14]
[313962319,1707864646032,-500.0,0.00037917,14]
[313962320,1707864646041,-500.0,0.00037917,14]
[313962321,1707864646050,-500.0,0.00037917,14]
[313962322,1707864646060,-500.0,0.00037917,14]
[313962323,1707864646069,-509.83326019,0.00037917,14]
[313962324,1707864646078,-500.0,0.00037917,14]
[313962325,1707864646087,-500.0,0.00037917,14]
[313962326,1707864646097,-293.53752748,0.00037917,14]
[313962327,1707864646106,-500.0,0.00037917,14]
[313962328,1707864646115,-500.0,0.00037917,14]
[313962329,1707864646125,-500.0,0.00037917,14]
[313962330,1707864646135,-500.0,0.00037917,14]
[313962331,1707864646145,-500.0,0.00037917,14]
[313962332,1707864646155,-500.0,0.00037917,14]
[313962333,1707864646166,-736.03,0.00037917,14]
[313962334,1707864646175,-736.03,0.00037917,14]
[313962335,1707864646185,-736.03,0.00037917,14]
[313962336,1707864646194,-736.03,0.00037917,14]
[313962337,1707864646205,-383.2720417,0.00037917,14]
[313962349,1707865748173,-2877.08676219,0.00024135,2]
[313962350,1707865763087,-1036.29597135,0.00024135,2]
[313962351,1707865763108,-641.04413106,0.00024899,2]
[313962352,1707865763127,-195.61536774,0.000249,2]
[313962353,1707865763148,-155.0,0.00025,2]
[313962354,1707865763167,-280.70858126,0.00026469,2]
[313962355,1707865763191,-1736.17209769,0.0002647,2]
[313962417,1707865832109,-154.79876161,0.00024133,2]
[313962419,1707865832118,-380.63965637,0.00024134,2]
[313962421,1707865832134,-4518.16250397,0.00024134,2]
[313962423,1707865832146,-3710.91867452,0.0002647,2]
[313962425,1707865832157,-2465.90165322,0.0002647,2]
[313962428,1707865832168,-805.50148278,0.0002647,2]
[313962430,1707865832178,-1717.3410849,0.00028,2]
[313962432,1707865832189,-3062.904902,0.00028467,2]
[313962434,1707865832201,-790.35892036,0.00028468,2]
[313962436,1707865832212,-3913.38273354,0.00028473,2]
[313962438,1707865832223,-200.0,0.00029116,15]
[313962441,1707865832233,-268.4219494,0.00029733,2]
[313962443,1707865832246,-11470.2309505,0.0003184,2]
[313962445,1707865832256,-280.0,0.00032027,15]
[313962447,1707865832266,-319.6584644,0.00032122,2]
[313962449,1707865832277,-1276.2070171,0.00032458,2]
[313962451,1707865832287,-216.0,0.00033,2]
[313962453,1707865832298,-172.0,0.00033,2]
[313962455,1707865832308,-216.0,0.00033151,2]
[313962457,1707865832321,-215.60591,0.00034017,2]
[313962459,1707865832332,-767.01207418,0.00034161,30]
[313962461,1707865832342,-210.2422997,0.00034161,7]
[313962464,1707865832352,-8189.8295,0.00034326,7]
[313962466,1707865832362,-216.0,0.00034521,2]
[313962468,1707865832373,-172.0,0.00034521,2]
[313962470,1707865832384,-391.0,0.0003523,15]
[313962472,1707865832395,-1533.16044773,0.00035685,4]
[313962474,1707865832406,-987.28447357,0.00035817,2]
[313962477,1707865832416,-176.0,0.00036247,2]
[313962479,1707865832427,-221.0,0.00036247,2]
[313962481,1707865832438,-200.0,0.000368,4]
[313962483,1707865832448,-155.0,0.00036966,2]
[313962485,1707865832458,-995.59395041,0.00036999,7]
[313962487,1707865832469,-3902.85254909,0.00037,5]
[313962489,1707865832480,-150.0,0.000374,31]
[313962492,1707865832490,-189.48818747,0.00037857,2]
[313962494,1707865832500,-683.729052,0.000379,9]
[313962496,1707865832509,-663.91686787,0.00037916,4]
[313962498,1707865832519,-389.0779123,0.00037917,7]
[313962500,1707865832529,-153.93310463,0.00037917,14]
[313962501,1707865832539,-500.0,0.00037917,14]
[313962502,1707865832548,-155.02015262,0.00037917,14]
[313962503,1707865832558,-500.0,0.00037917,14]
[313962504,1707865832568,-640.74,0.00037917,14]
[313962505,1707865832577,-71.38719637,0.00037917,14]
[313962506,1707865832592,-428.61280363,0.00037917,14]
[313962507,1707865832603,-202.29,0.00037917,14]
[313962508,1707865832614,-500.0,0.00037917,7]
[313962509,1707865832623,-500.0,0.00037917,14]
[313962510,1707865832634,-500.0,0.00037917,14]
[313962511,1707865832645,-526.97557963,0.00037917,14]
[313962512,1707865832654,-152.38544019,0.00037917,14]
[313962513,1707865832665,-500.0,0.00037917,14]
[313962514,1707865832675,-500.0,0.00037917,14]
[313962515,1707865832685,-500.0,0.00037917,14]
[313962516,1707865832695,-176.13583237,0.00037917,7]
[313962517,1707865832705,-500.0,0.00037917,14]
[313962518,1707865832715,-179.38230806,0.00037918,4]
[313962519,1707865832724,-1201.66555398,0.00037918,4]
[313962520,1707865832734,-500.0,0.00037918,14]
[313962521,1707865832744,-500.0,0.00037918,14]
[313962522,1707865832753,-500.0,0.00037918,14]
[313962523,1707865832763,-500.0,0.00037918,14]
[313962524,1707865832774,-345.30000046,0.00037918,14]
[313962525,1707865832783,-500.0,0.00037918,14]
[313962526,1707865832794,-500.0,0.00037918,14]
[313962527,1707865832804,-500.0,0.00037918,14]
[313962528,1707865832931,-500.0,0.00037918,14]
[313962529,1707865832940,-500.0,0.00037918,14]
[313962530,1707865832949,-500.0,0.00037918,14]
[313962531,1707865832958,-3122.54,0.00037947,3]
[313962532,1707865832967,-500.0,0.00037957,14]
[313962533,1707865832976,-393.33427417,0.00037957,4]
[313962534,1707865832985,-2820.22700794,0.00037957,4]
[313962535,1707865832994,-328.26618367,0.00037957,4]
[313962536,1707865833004,-1241.34345925,0.00037957,7]
[313962567,1707865838238,-241.65044483,0.0002647,2]
[313962569,1707865838252,-1924.4935215,0.00037954,3]
[313962615,1707865841474,-677.6264785,0.00037954,3]
[313962616,1707865841484,-1248.78168558,0.00037957,7]
[313962680,1707865843257,-249.23844498,0.00037957,7]
[313962681,1707865843267,-2867.08825522,0.00037957,4]
[313962682,1707865844121,-1101.31131173,0.00037957,4]
[313962684,1707865844131,-1584.55453988,0.00037957,4]
[313962690,1707865846188,-1365.25195897,0.00037957,4]
[313962691,1707865846199,-628.869997,0.00037957,4]
[313962692,1707865846211,-435.34359155,0.00037957,4]
[313962693,1707865846227,-2057.45039514,0.00037957,4]
[313962694,1707865846237,-261.98617996,0.00037957,4]
[313962695,1707865846247,-323.90420148,0.00037957,4]
[313962696,1707865846258,-323.07939233,0.00037957,4]
[313962697,1707865846268,-1024.93843087,0.00037957,4]
[313962698,1707865846279,-6387.80858261,0.00037957,4]
[313962699,1707865846288,-297.08067189,0.00037957,4]
[313962700,1707865846298,-523.48932811,0.00037957,4]
[313962701,1707865846307,-195.11326893,0.00037957,4]
[313962702,1707865846317,-200.77758066,0.00037957,4]
[313962703,1707865846329,-2607.2690256,0.00037957,4]
[313962704,1707865846340,-592.91812692,0.00037957,2]
[313962705,1707865846350,-503.10374694,0.00037964,14]
[313962706,1707865846359,-500.0,0.00037964,14]
[313962707,1707865846368,-500.0,0.00037964,14]
[313962708,1707865846377,-500.0,0.00037964,14]
[313962709,1707865846387,-500.0,0.00037964,14]
[313962710,1707865846396,-500.0,0.00037964,14]
[313962711,1707865846405,-500.0,0.00037964,14]
[313962712,1707865846415,-500.0,0.00037964,14]
[313962713,1707865846425,-601.77,0.00037964,14]
[313962714,1707865846434,-500.0,0.00037964,14]
[313962715,1707865846444,-500.0,0.00037964,14]
[313962716,1707865846453,-99.87791332,0.00037964,14]
[313962717,1707865846465,-351.10475835,0.00037964,14]
[313962725,1707866839198,-360.81623429,0.00018823,2]
[313962726,1707866839220,-155.54015347,0.00018824,2]
[313962727,1707866839241,-1747.38022649,0.00018824,2]
[313962728,1707866839262,-154.79876161,0.00018825,2]
[313962729,1707866839381,-535.94317616,0.00018825,2]
[313962730,1707866839403,-2245.52144798,0.00018825,2]
[313962739,1707866949076,-981.63485637,0.00018823,2]
[313962740,1707866949100,-200.0,0.00020716,2]
[313962741,1707866949130,-7989.76732382,0.00021999,2]
[313962742,1707866949156,-2038.87240417,0.00022,2]
[313962743,1707866949177,-197.54281806,0.00022788,7]
[313962746,1707866961099,-82.45718194,0.00022788,7]
[313962747,1707866961119,-627.0731662,0.00024409,2]
[313962748,1707866961139,-7165.51593786,0.00024409,2]
[313962762,1707867032346,-2038.87240417,0.00024408,2]
[313962764,1707867032356,-4076.32396534,0.00024409,2]
[313962866,1707867038354,-529.4657,0.00024409,2]
[313962869,1707867038366,-1321.62343863,0.00024409,2]
[313962871,1707867038377,-260.29428997,0.00024409,2]
[313962873,1707867038389,-1651.94625539,0.00024409,2]
[313962882,1707867038462,-9894.83041281,0.00024409,2]
[313962884,1707867038471,-391.0,0.00025067,7]
[313962886,1707867038480,-280.70858126,0.00026,2]
[313962888,1707867038490,-300.0,0.0002647,2]
[313962890,1707867038499,-200.0,0.0002647,2]
[313962892,1707867038508,-233.62587947,0.0002647,2]
[313962894,1707867038517,-1833.23081088,0.0002647,2]
[313962896,1707867038526,-10325.80575039,0.00026562,2]
[313962898,1707867038535,-966.07606502,0.00026562,2]
[313962900,1707867038545,-200.0,0.00027573,15]
[313962902,1707867038554,-286.0,0.00027573,15]
[313962904,1707867038563,-1105.47841717,0.0002884,2]
[313962906,1707867038572,-168.557182,0.00028965,2]
[313962908,1707867038583,-154.79876161,0.00031003,5]
[313962910,1707867038592,-981.06163775,0.00031011,2]
[313962912,1707867038602,-12517.90072809,0.00033981,4]
[313962914,1707867038611,-155.84181444,0.00034168,4]
[313962916,1707867038624,-1114.45235735,0.00034168,2]
[313962917,1707867038633,-1058.23828348,0.00034168,30]
[313962918,1707867038643,-174.96920373,0.00034172,2]
[313962919,1707867038653,-1095.16916152,0.00034272,31]
[313962920,1707867038663,-915.40342186,0.00034448,10]
[313962921,1707867038671,-6203.17,0.00034448,3]
[313962922,1707867038681,-3362.61980226,0.00034448,3]
[313962923,1707867038692,-512.74356397,0.00034448,3]
[313962928,1707867041746,-5291.57175281,0.00034448,3]
[313962929,1707867041840,-2662.08488096,0.00034448,3]
[313962930,1707867041849,-534.9336598,0.00034456,4]
[313962931,1707867041858,-608.74754307,0.00034456,4]
[313962932,1707867041867,-312.28133237,0.00034456,4]
[313962933,1707867041877,-1947.38333434,0.00034456,4]
[313962934,1707867041886,-293.93668569,0.00034456,4]
[313962935,1707867041895,-2064.12913589,0.00034456,2]
[313962936,1707867041907,-899.82195666,0.00034456,2]
[313962937,1707867041920,-219.01596217,0.00034456,2]
[313962938,1707867041930,-250.0,0.00034457,2]
[313962939,1707867041941,-197.116436,0.00034458,2]
[313962940,1707867041951,-3539.75760183,0.00034458,7]
[313962941,1707867041964,-5000.0,0.00034458,7]
[313962942,1707867041977,-2494.15135631,0.00034458,7]
[313962961,1707867043432,-16675.49472541,0.00034458,7]
[313962962,1707867043445,-1115.42130348,0.00034458,7]
[313962963,1707867043458,-5120.07663628,0.00034458,7]
[313962968,1707867046377,-1946.00893848,0.00034458,7]
[313962969,1707867046434,-851.49034209,0.00034458,7]
[313962986,1707868147109,-907.14192831,0.00020881,2]
[313962987,1707868147131,-3524.49104167,0.00020882,2]
[313962988,1707868147152,-6665.08,0.00020883,3]
[313962989,1707868147173,-5864.81000002,0.00020885,2]
[313962991,1707868154129,-590.62215999,0.00020879,2]
[313962992,1707868154153,-1588.23318982,0.0002088,2]
[313962993,1707868154175,-154.79876161,0.0002088,2]
[313962994,1707868154197,-12147.21,0.00020883,3]
[313962995,1707868154219,-250.27830304,0.00020885,2]
[313962996,1707868154241,-1435.25522947,0.00020886,2]
[313962997,1707868154262,-161.66447433,0.00020886,2]
[313962998,1707868154284,-20950.86004502,0.00020886,2]
[313962999,1707868154304,-181.70308588,0.00020891,2]
[313963000,1707868154325,-37099.20039005,0.00020893,2]
[313963001,1707868154346,-1513.43202169,0.00020895,2]
[313963002,1707868155093,-2954.70792989,0.00020895,2]
[313963003,1707868155114,-155.99637551,0.000209,2]
[313963004,1707868155134,-43736.0,0.00021,2]
[313963005,1707868155155,-2038.87240417,0.00022,2]
[313963006,1707868155177,-280.89558908,0.00022726,2]
[313963007,1707868155199,-8982.79162375,0.00022727,2]
[313963008,1707868159104,-563.70112892,0.00020879,2]
[313963009,1707868159124,-454.78953434,0.00020879,2]
[313963010,1707868159147,-15917.20837625,0.00022727,2]
[313963011,1707868159170,-151.0,0.00022727,2]
[313963012,1707868159193,-151.0,0.00022727,2]
[313963013,1707868159215,-200.0,0.00023065,7]
[313963014,1707868159239,-169.6755261,0.00023724,2]
[313963015,1707868159261,-155.9963755,0.00024265,2]
[313963016,1707868159283,-7875.046286,0.00024309,2]
[313963017,1707868159304,-905.79106363,0.00025736,2]
[313963018,1707868159325,-1435.97012369,0.00025839,2]
[313963019,1707868159348,-316.80429751,0.00026562,2]
[313963020,1707868159371,-5338.55029102,0.00026562,2]
[313963021,1707868159396,-50000.0,0.00026603,2]
[313963022,1707868159421,-11260.08181704,0.00026603,2]
[313963030,1707868232458,-250.0,0.00026602,2]
[313963031,1707868232467,-740.35892036,0.00026603,2]
[313963032,1707868232479,-37999.5592626,0.00026603,2]
[313963033,1707868232488,-151.0,0.00026603,2]
[313963034,1707868232497,-151.0,0.00026603,2]
[313963035,1707868232507,-151.0,0.00026603,2]
[313963036,1707868232515,-151.0,0.00026603,2]
[313963037,1707868232524,-151.0,0.00026603,2]
[313963038,1707868232534,-500.0,0.00027287,2]
[313963040,1707868232543,-155.9963755,0.00027629,2]
[313963041,1707868232552,-196.368472,0.00027741,2]
[313963043,1707868232561,-151.0,0.00028821,2]
[313963045,1707868232570,-155.9963755,0.00030994,2]
[313963047,1707868232579,-168.557182,0.00031307,2]
[313963050,1707868232589,-1452.89720761,0.00032358,2]
[313963052,1707868232599,-5000.0,0.00034177,7]
[313963054,1707868232609,-5000.0,0.00034184,7]
[313963056,1707868232618,-6124.00865746,0.00034266,7]
[313963156,1707868239506,-2038.87240417,0.00026602,2]
[313963158,1707868239516,-439.85891812,0.00026703,2]
[313963160,1707868239527,-10422.15305019,0.00026703,2]
[313963161,1707868239537,-4735.4006318,0.00034176,4]
[313963162,1707868239546,-723.05575122,0.00034266,7]
[313963163,1707868239556,-155.9963755,0.00034358,2]
[313963164,1707868239565,-7029.63,0.00034437,3]
[313963165,1707868239575,-7974.73,0.00034447,3]
[313963166,1707868239585,-151.0,0.00034457,2]
[313963167,1707868239594,-151.0,0.00034457,2]
[313963168,1707868239603,-151.0,0.00034457,2]
[313963169,1707868239612,-274.176835,0.00034457,2]
[313963170,1707868239622,-380.60267888,0.00034457,4]
[313963172,1707868239631,-93884.15552062,0.00034457,4]
[313963174,1707868239640,-628.39737856,0.00034458,4]
[313963176,1707868239650,-93789.7867602,0.00034458,14]
[313963178,1707868239660,-151.0,0.00034458,2]
[313963180,1707868239669,-151.0,0.00034458,2]
[313963182,1707868239679,-151.0,0.00034458,2]
[313963184,1707868239688,-151.0,0.0003457,2]
[313963185,1707868239697,-172.87374623,0.00034578,4]
[313963186,1707868239706,-906.8614183,0.00034578,4]
[313963187,1707868239715,-283.090454,0.00034579,2]
[313963188,1707868239725,-151.0,0.00034579,2]
[313963189,1707868239734,-101590.3888,0.00034618,7]
[313963190,1707868239743,-503.03428649,0.00034873,5]
[313963191,1707868239752,-319.66847299,0.00034897,5]
[313963192,1707868239762,-5058.54188515,0.00035,15]
[313963193,1707868239772,-161.61744964,0.00035532,4]
[313963194,1707868239781,-179.69382854,0.00035532,4]
[313963195,1707868239790,-2989.47012284,0.00035532,4]
[313963196,1707868239800,-175.95069844,0.00035532,4]
[313963197,1707868239809,-1588.65547909,0.00035532,4]
[313963198,1707868239819,-12986.48006473,0.00035533,4]
[313963199,1707868239828,-157.08844421,0.00035533,4]
[313963200,1707868239837,-1434.86449475,0.00035533,4]
[313963201,1707868239847,-1615.30357702,0.00035533,4]
[313963202,1707868239856,-50000.0,0.00035534,7]
[313963203,1707868239865,-151.0,0.00035534,2]
[313963204,1707868239875,-1533.16044773,0.00035686,4]
[313963205,1707868239884,-1232.0,0.0003589,2]
[313963206,1707868239894,-216.0,0.0003589,2]
[313963207,1707868239903,-324.0,0.0003589,2]
[313963208,1707868239913,-1232.0,0.00036,2]
[313963209,1707868239922,-216.0,0.00036,2]
[313963210,1707868239932,-324.0,0.00036,2]
[313963211,1707868239952,-306.0,0.00036055,2]
[313963212,1707868239963,-1232.0,0.00036164,2]
[313963213,1707868239972,-153.0,0.00036329,2]
[313963214,1707868239982,-153.0,0.00036329,2]
[313963215,1707868239992,-200.1465056,0.00036329,2]
[313963216,1707868240002,-306.0,0.00036329,2]
[313963217,1707868240013,-202.0927635,0.00036329,2]
[313963218,1707868240022,-153.0,0.00036329,2]
[313963219,1707868240031,-153.0,0.00036329,2]
[313963220,1707868240040,-153.0,0.00036329,2]
[313963221,1707868240049,-153.0,0.00036329,2]
[313963222,1707868240059,-153.0,0.00036329,2]
[313963223,1707868240068,-153.0,0.00036329,2]
[313963224,1707868240078,-200.1465056,0.00036329,2]
[313963225,1707868240090,-153.0,0.00036329,2]
[313963226,1707868240099,-200.1465056,0.00036329,2]
[313963227,1707868240109,-153.0,0.00036329,2]
[313963228,1707868240118,-153.0,0.00036329,2]
[313963229,1707868240128,-153.0,0.00036329,2]
[313963230,1707868240138,-153.0,0.00036329,2]
[313963231,1707868240147,-200.1465056,0.00036329,2]
[313963232,1707868240157,-153.0,0.00036329,2]
[313963233,1707868240167,-153.0,0.00036329,2]
[313963234,1707868240283,-153.0,0.00036329,2]
[313963235,1707868240311,-200.1465056,0.00036329,2]
[313963236,1707868240320,-153.0,0.00036329,2]
[313963237,1707868240330,-399.484552,0.00036329,2]
[313963238,1707868240339,-153.0,0.00036329,2]
[313963239,1707868240349,-154.87609912,0.00036341,4]
[313963240,1707868240358,-212.82571171,0.00036342,4]
[313963241,1707868240367,-19148.7409661,0.00036343,4]
[313963242,1707868240376,-151.0,0.00036343,2]
[313963243,1707868240385,-151.0,0.00036343,2]
[313963244,1707868240394,-151.0,0.00036343,2]
[313963245,1707868240404,-1232.0,0.00036438,2]
[313963246,1707868240413,-644.33792891,0.00036543,2]
[313963247,1707868240423,-158.253506,0.00036544,2]
[313963248,1707868240433,-154.79876161,0.00036569,4]
[313963249,1707868240443,-622.53651475,0.00036577,4]
[313963250,1707868240452,-545.21046566,0.00036578,4]
[313963251,1707868240464,-151.0,0.00036579,2]
[313963252,1707868240476,-44444.0,0.00036612,3]
[313963253,1707868240485,-12999.81141351,0.00036618,30]
[313963254,1707868240499,-12641.97938649,0.00036618,30]
[313963255,1707868240508,-334.282561,0.000367,19]
[313963256,1707868240518,-244.93876299,0.00036708,4]
[313963257,1707868240527,-155.34758793,0.00036708,4]
[313963258,1707868240538,-1950.45781889,0.00036709,4]
[313963259,1707868240548,-535.79408158,0.0003671,4]
[313963260,1707868240558,-330.75753837,0.0003671,4]
[313963261,1707868240567,-154.87609912,0.0003671,4]
[313963262,1707868240576,-19932.70348687,0.0003671,4]
[313963263,1707868240585,-247.40081509,0.0003671,4]
[313963264,1707868240594,-500.0,0.0003671,4]
[313963265,1707868240603,-1744.17940929,0.0003671,4]
[313963266,1707868240613,-212.72419898,0.0003671,4]
[313963267,1707868240622,-151.0,0.0003671,2]
[313963268,1707868240631,-199.87854564,0.00036711,4]
[313963269,1707868240640,-294.73471076,0.00036711,4]
[313963270,1707868240650,-167.03904686,0.00036711,15]
[313963271,1707868240659,-275.15391027,0.00036711,15]
[313963272,1707868240668,-523.69004645,0.00036712,14]
[313963273,1707868240677,-500.0,0.00036712,14]
[313963274,1707868240687,-500.0,0.00036712,7]
[313963275,1707868240696,-500.0,0.00036712,7]
[313963276,1707868240706,-500.0,0.00036712,7]
[313963277,1707868240715,-500.0,0.00036712,7]
[313963278,1707868240725,-500.0,0.00036712,7]
[313963279,1707868240735,-500.0,0.00036712,14]
[313963280,1707868240745,-151.20673677,0.00036712,14]
[313963281,1707868240754,-500.0,0.00036712,14]
[313963282,1707868240763,-531.10596517,0.00036712,14]
[313963283,1707868240773,-150.0,0.00036712,14]
[313963284,1707868240782,-500.0,0.00036712,14]
[313963285,1707868240792,-150.0,0.00036712,14]
[313963286,1707868240801,-507.14192203,0.00036712,14]
[313963287,1707868240811,-500.0,0.00036712,14]
[313963288,1707868240820,-393.17062915,0.00036712,14]
[313963289,1707868240830,-500.0,0.00036712,14]
[313963290,1707868240839,-500.0,0.00036712,14]
[313963291,1707868240849,-500.0,0.00036712,14]
[313963292,1707868240858,-500.0,0.00036712,14]
[313963293,1707868240868,-500.0,0.00036712,14]
[313963294,1707868240877,-500.0,0.00036712,14]
[313963295,1707868240887,-500.0,0.00036712,14]
[313963296,1707868240896,-500.0,0.00036712,14]
[313963297,1707868240906,-250.49,0.00036712,14]
[313963298,1707868240916,-502.8191208,0.00036712,14]
[313963299,1707868240925,-500.0,0.00036712,14]
[313963300,1707868240935,-500.0,0.00036712,14]
[313963301,1707868240944,-500.0,0.00036712,14]
[313963302,1707868240953,-500.0,0.00036712,14]
[313963303,1707868240962,-500.0,0.00036712,14]
[313963304,1707868240971,-500.0,0.00036712,14]
[313963305,1707868240980,-500.0,0.00036712,14]
[313963306,1707868240989,-500.0,0.00036712,14]